bitfinex-derivatives/quotes_BTCF0:USTF0_20241006
["timestamp","ask_amount","ask_price","bid_price","bid_amount"]
[1728217923169,0.0004,62174.0,62173.0,0.25412279]
[1728217924076,0.0004,62174.0,62173.0,0.17382655]
[1728217925074,0.0004,62174.0,62173.0,0.17482655]
[1728217925280,0.0004,62174.0,62173.0,0.17582655]
[1728217926473,0.0004,62174.0,62173.0,0.066739]
[1728217928369,0.03530902,62174.0,62173.0,0.066739]
[1728217930575,0.0004,62174.0,62173.0,0.066739]
[1728217933887,0.0004,62174.0,62173.0,0.09616406]
[1728217934384,0.0004,62174.0,62173.0,0.20521335]
[1728217937483,0.0004,62174.0,62173.0,0.30169257]
[1728217937675,0.0004,62174.0,62173.0,0.3024227]
[1728217938573,0.0004,62174.0,62173.0,0.20594348]
[1728217938879,0.0004,62174.0,62173.0,0.23108992]
[1728217939076,0.0004,62174.0,62173.0,0.20594348]
[1728217940381,0.0004,62174.0,62173.0,0.33675327]
[1728217941085,0.0004,62174.0,62173.0,0.20594348]
[1728217941285,0.0004,62174.0,62173.0,0.33676563]
[1728217941489,0.03465376,62174.0,62173.0,0.09616406]
[1728217943180,0.03465376,62174.0,62173.0,0.12131017]
[1728217945072,0.03465376,62174.0,62173.0,0.09616406]
[1728217946582,0.0004,62174.0,62173.0,0.09616406]
[1728217949480,0.0004,62174.0,62173.0,0.205784]
[1728217950891,0.0004,62174.0,62173.0,0.30222421]
[1728217952087,0.0004,62174.0,62173.0,0.32736943]
[1728217952692,0.0004,62174.0,62173.0,0.23092922]
[1728217953481,0.0004,62174.0,62173.0,0.59172922]
[1728217953893,0.0004,62174.0,62173.0,0.68816893]
[1728217954886,0.0004,62174.0,62173.0,0.59172922]
[1728217955391,0.0112,62178.0,62173.0,0.59172922]
[1728217955588,0.0112,62178.0,62177.0,0.064735]
[1728217955802,0.0112,62182.0,62181.0,0.064331]
[1728217955981,0.064329,62184.0,62181.0,0.0004]
[1728217956295,0.064329,62184.0,62182.0,0.06473]
[1728217956479,0.1390087,62184.0,62182.0,0.06473]
[1728217956683,0.0750797,62183.0,62182.0,0.06473]
[1728217959392,0.0750797,62183.0,62182.0,0.06573]
[1728217960798,0.0750797,62183.0,62182.0,0.06673]
[1728217962999,0.0750797,62183.0,62182.0,0.09538029]
[1728217964603,0.0004,62183.0,62182.0,0.15966699]
[1728217964906,0.0004,62183.0,62182.0,0.09538029]
[1728217967307,0.0004,62183.0,62182.0,0.15966699]
[1728217969305,0.0305,62183.0,62182.0,0.15966699]
[1728217971506,0.0305,62183.0,62182.0,0.14358118]
[1728217972399,0.0305,62183.0,62182.0,0.09538029]
[1728217972605,0.0305,62183.0,62182.0,0.03105029]
[1728217972810,0.094829,62183.0,62182.0,0.05060438]
[1728217973007,0.094829,62183.0,62182.0,0.0024]
[1728217978812,0.094829,62183.0,62182.0,0.0666867]
[1728217979501,0.12807595,62183.0,62182.0,0.0024]
[1728217985006,0.094829,62183.0,62182.0,0.0024]
[1728217985318,0.12756133,62183.0,62182.0,0.0024]
[1728217986008,0.21630066,62183.0,62182.0,0.0024]
[1728217986524,0.094829,62183.0,62182.0,0.0024]
[1728217993017,0.064729,62183.0,62182.0,0.0024]
[1728218001723,0.09728205,62183.0,62182.0,0.0024]
[1728218002226,0.1860214,62183.0,62182.0,0.0024]
[1728218003724,1.2684614,62183.0,62182.0,0.0024]
[1728218003920,1.35613822,62183.0,62182.0,0.00146324]
[1728218005727,2.07773822,62183.0,62182.0,0.00146324]
[1728218006928,2.10722476,62183.0,62182.0,0.00146324]
[1728218008733,1.92825554,62183.0,62182.0,0.00146324]
[1728218012631,1.32825554,62183.0,62182.0,0.00146324]
[1728218013232,1.92825554,62183.0,62182.0,0.00146324]
[1728218013430,1.32825554,62183.0,62182.0,0.00146324]
[1728218014529,1.92825554,62183.0,62182.0,0.00146324]
[1728218016037,1.86392654,62183.0,62181.0,0.0004]
[1728218016343,0.54717,62182.0,62181.0,0.0004]
[1728218016635,0.61877887,62182.0,62181.0,0.0004]
[1728218016835,1.21877887,62182.0,62181.0,0.0004]
[1728218017544,1.21977887,62182.0,62181.0,0.0014]
[1728218017739,1.21977887,62182.0,62181.0,0.0024]
[1728218018040,1.94137887,62182.0,62181.0,0.0024]
[1728218019031,1.45893887,62182.0,62181.0,0.0024]
[1728218019238,1.94137887,62182.0,62181.0,0.0024]
[1728218019432,1.94142605,62182.0,62181.0,0.0024]
[1728218020240,1.99079299,62182.0,62181.0,0.0024]
[1728218023737,1.86977,62182.0,62181.0,0.0024]
[1728218024940,1.26977,62182.0,62181.0,0.0024]
[1728218026934,0.78733,62182.0,62181.0,0.0024]
[1728218031844,0.90860563,62182.0,62181.0,0.0024]
[1728218032448,1.08542493,62182.0,62181.0,0.0024]
[1728218032746,0.90860563,62182.0,62181.0,0.0024]
[1728218033846,0.83669682,62182.0,62181.0,0.0024]
[1728218034048,0.90875563,62182.0,62181.0,0.0024]
[1728218036254,0.18715563,62182.0,62181.0,0.0024]
[1728218036555,0.54784939,62182.0,62181.0,0.0024]
[1728218037937,0.70869999,62182.0,62181.0,0.0024]
[1728218038335,0.34789999,62182.0,62181.0,0.0024]
[1728218038749,0.5873806,62182.0,62181.0,0.0024]
[1728218039050,0.42653,62182.0,62181.0,0.0024]
[1728218050158,0.42653,62182.0,62181.0,0.05057205]
[1728218053248,0.42653,62182.0,62181.0,0.0024]
[1728218053453,0.42653,62182.0,62181.0,0.05060123]
[1728218053660,0.42653,62182.0,62181.0,0.05060191]
[1728218053863,0.42653,62182.0,62181.0,0.0024]
[1728218053864,0.54791948,62182.0,62181.0,0.0024]
[1728218054866,0.18711948,62182.0,62181.0,0.0024]
[1728218055058,0.54791948,62182.0,62181.0,0.0024]
[1728218056855,0.5152764,62182.0,62181.0,0.0024]
[1728218057157,0.54787861,62182.0,62181.0,0.0024]
[1728218060360,0.69266719,62182.0,62181.0,0.0024]
[1728218061866,0.42653,62182.0,62181.0,0.0024]
[1728218068460,0.06573,62182.0,62181.0,0.0024]
[1728218068769,0.42653,62182.0,62181.0,0.0024]
[1728218068969,0.49857265,62182.0,62181.0,0.0024]
[1728218069353,0.13777265,62182.0,62181.0,0.0024]
[1728218069554,0.49857265,62182.0,62181.0,0.0024]
[1728218069963,0.54793492,62182.0,62181.0,0.0024]
[1728218070868,0.48360492,62182.0,62181.0,0.066731]
[1728218071164,0.48360496,62182.0,62181.0,0.066731]
[1728218071555,0.09014439,62182.0,62181.0,0.066731]
[1728218071864,0.48360743,62182.0,62181.0,0.066731]
[1728218074762,0.12280743,62182.0,62181.0,0.066731]
[1728218076872,0.0014,62182.0,62181.0,0.066731]
[1728218077776,0.06573,62182.0,62181.0,0.0024]
[1728218078767,0.0014,62182.0,62181.0,0.066731]
[1728218081469,0.06573,62182.0,62181.0,0.0024]
[1728218084580,0.42653,62182.0,62181.0,0.0024]
[1728218085777,0.06573,62182.0,62181.0,0.0024]
[1728218085979,0.42653,62182.0,62181.0,0.0024]
[1728218086281,0.06573,62182.0,62181.0,0.0024]
[1728218086471,0.42653,62182.0,62181.0,0.0024]
[1728218086876,0.06573,62182.0,62181.0,0.0024]
[1728218087177,0.42653,62182.0,62181.0,0.0024]
[1728218088290,0.06573,62182.0,62181.0,0.0024]
[1728218088688,0.42653,62182.0,62181.0,0.0024]
[1728218088986,0.06573,62182.0,62181.0,0.0024]
[1728218089179,0.42653,62182.0,62181.0,0.0024]
[1728218091886,0.54796509,62182.0,62181.0,0.0024]
[1728218092290,0.18716509,62182.0,62181.0,0.0024]
[1728218092482,0.54796509,62182.0,62181.0,0.0024]
[1728218093383,0.18716509,62182.0,62181.0,0.0024]
[1728218093588,0.54796509,62182.0,62181.0,0.0024]
[1728218093781,0.18716509,62182.0,62181.0,0.0024]
[1728218094180,0.54796509,62182.0,62181.0,0.0024]
[1728218094878,0.60564474,62182.0,62181.0,0.0024]
[1728218095476,0.24484474,62182.0,62181.0,0.0024]
[1728218095688,0.54796509,62182.0,62181.0,0.0024]
[1728218095889,0.24484474,62182.0,62181.0,0.0024]
[1728218096184,0.54796686,62182.0,62181.0,0.0024]
[1728218096591,0.42653,62182.0,62181.0,0.0024]
[1728218096888,0.18716688,62182.0,62181.0,0.0024]
[1728218097080,0.54796688,62182.0,62181.0,0.0024]
[1728218097794,0.18716688,62182.0,62181.0,0.0024]
[1728218098179,0.54796688,62182.0,62181.0,0.0024]
[1728218098385,0.18716688,62182.0,62181.0,0.0024]
[1728218098582,0.54796688,62182.0,62181.0,0.0024]
[1728218098885,0.42653,62182.0,62181.0,0.0024]
[1728218099490,0.42653,62182.0,62181.0,0.05063784]
[1728218099685,0.42653,62182.0,62181.0,0.0024]
[1728218101499,0.42653,62182.0,62181.0,0.05063576]
[1728218101694,0.42653,62182.0,62181.0,0.0024]
[1728218104699,0.06573,62182.0,62181.0,0.0024]
[1728218104898,0.42653,62182.0,62181.0,0.0024]
[1728218106401,0.06573,62182.0,62181.0,0.0024]
[1728218106705,0.42653,62182.0,62181.0,0.0024]
[1728218107002,0.54731868,62182.0,62181.0,0.0024]
[1728218109388,0.5473104,62182.0,62181.0,0.0024]
[1728218109990,0.1865104,62182.0,62181.0,0.0024]
[1728218110193,0.5473104,62182.0,62181.0,0.0024]
[1728218113993,0.42653,62182.0,62181.0,0.0024]
[1728218115398,0.06573,62182.0,62181.0,0.0024]
[1728218115598,0.42653,62182.0,62181.0,0.0024]
[1728218115798,0.06573,62182.0,62181.0,0.0024]
[1728218116098,0.42653,62182.0,62181.0,0.0024]
[1728218118402,0.06573,62182.0,62181.0,0.0024]
[1728218118604,0.42653,62182.0,62181.0,0.0024]
[1728218120292,0.06573,62182.0,62181.0,0.0024]
[1728218120488,0.42653,62182.0,62181.0,0.0024]
[1728218121806,0.06573,62182.0,62181.0,0.0024]
[1728218122002,0.10511292,62182.0,62181.0,0.0024]
[1728218122208,0.54738931,62182.0,62181.0,0.0024]
[1728218122404,0.48305931,62182.0,62181.0,0.0024]
[1728218122796,0.48305931,62182.0,62181.0,0.034]
[1728218123102,0.48305931,62182.0,62181.0,0.0665]
[1728218124105,0.12225931,62182.0,62181.0,0.0665]
[1728218124302,0.48305931,62182.0,62181.0,0.0665]
[1728218125512,0.54738931,62182.0,62181.0,0.0665]
[1728218128895,0.54742996,62182.0,62181.0,0.0665]
[1728218129101,0.42653,62182.0,62181.0,0.11473773]
[1728218132308,0.42653,62182.0,62181.0,0.0665]
[1728218132607,0.42653,62182.0,62181.0,0.11473773]
[1728218134004,0.06573,62182.0,62181.0,0.11473773]
[1728218134206,0.42653,62182.0,62181.0,0.11473773]
[1728218135510,0.06573,62182.0,62181.0,0.11473773]
[1728218135811,0.42653,62182.0,62181.0,0.11473773]
[1728218136408,0.06573,62182.0,62181.0,0.11473773]
[1728218136723,0.42653,62182.0,62181.0,0.11473773]
[1728218137111,0.42653,62182.0,62181.0,0.0665]
[1728218137410,0.42653,62182.0,62181.0,0.0024]
[1728218137411,0.4586837,62182.0,62181.0,0.0024]
[1728218138713,0.45857404,62182.0,62181.0,0.0024]
[1728218140513,0.09777404,62182.0,62181.0,0.0024]
[1728218140710,0.81937404,62182.0,62181.0,0.0024]
[1728218141217,0.78733,62182.0,62181.0,0.0024]
[1728218142616,0.06573,62182.0,62181.0,0.0024]
[1728218143115,0.78733,62182.0,62181.0,0.0024]
[1728218144015,0.18653224,62182.0,62181.0,0.0024]
[1728218144214,0.94821398,62182.0,62181.0,0.0024]
[1728218144415,1.06901622,62182.0,62181.0,0.0024]
[1728218144615,0.90813224,62182.0,62181.0,0.0024]
[1728218144818,1.06901622,62182.0,62181.0,0.0024]
[1728218145117,0.90813224,62182.0,62181.0,0.0024]
[1728218145321,0.81938149,62182.0,62181.0,0.00192324]
[1728218145511,0.064334,62178.0,62177.0,0.0004]
[1728218145705,0.064338,62174.0,62173.0,0.0004]
[1728218145922,0.064738,62174.0,62173.0,0.0004]
[1728218146212,0.064738,62174.0,62169.0,0.0004]
[1728218146213,0.064342,62170.0,62169.0,0.0004]
[1728218146417,0.064742,62170.0,62169.0,0.0004]
[1728218146617,1.147302,62170.0,62169.0,0.0004]
[1728218146834,1.2681066,62170.0,62169.0,0.0004]
[1728218147418,1.2691066,62170.0,62169.0,0.0004]
[1728218147612,1.42959241,62170.0,62169.0,0.0004]
[1728218148220,1.26816419,62170.0,62169.0,0.0004]
[1728218149113,1.30036419,62170.0,62169.0,0.0004]
[1728218149314,1.30136419,62170.0,62169.0,0.0004]
[1728218149613,1.46176078,62170.0,62169.0,0.0004]
[1728218150123,1.30136419,62170.0,62169.0,0.0004]
[1728218150421,1.32974825,62170.0,62169.0,0.0004]
[1728218152124,1.20988606,62170.0,62169.0,0.0004]
[1728218154514,1.93148606,62170.0,62169.0,0.0004]
[1728218155628,1.33148606,62170.0,62169.0,0.0004]
[1728218155815,0.60988606,62170.0,62169.0,0.0004]
[1728218156018,1.33148606,62170.0,62169.0,0.0004]
[1728218158326,0.60988606,62170.0,62169.0,0.0004]
[1728218158825,1.33148606,62170.0,62169.0,0.0004]
[1728218159249,1.36256387,62170.0,62169.0,0.0004]
[1728218159424,0.64096387,62170.0,62169.0,0.0004]
[1728218159620,1.36256387,62170.0,62169.0,0.0004]
[1728218159817,0.64096387,62170.0,62169.0,0.0004]
[1728218160021,1.36256387,62170.0,62169.0,0.0004]
[1728218162324,1.24096387,62170.0,62169.0,0.0004]
[1728218162630,1.36256387,62170.0,62169.0,0.0004]
[1728218162832,0.64096387,62170.0,62169.0,0.0004]
[1728218163020,1.33036387,62170.0,62169.0,0.0004]
[1728218164129,0.84780387,62170.0,62169.0,0.0004]
[1728218167328,0.81672606,62170.0,62169.0,0.0004]
[1728218168542,0.09512606,62170.0,62169.0,0.0004]
[1728218168729,0.81672606,62170.0,62169.0,0.0004]
[1728218174335,0.93658734,62170.0,62169.0,0.0004]
[1728218174630,0.9942921,62170.0,62169.0,0.0004]
[1728218177456,0.2726921,62170.0,62169.0,0.0004]
[1728218177631,0.93658734,62170.0,62169.0,0.0004]
[1728218179942,1.1134307,62170.0,62169.0,0.0004]
[1728218180142,1.17113346,62170.0,62169.0,0.0004]
[1728218180747,0.44953346,62170.0,62169.0,0.0004]
[1728218180942,0.3918307,62170.0,62169.0,0.0004]
[1728218181144,1.1134307,62170.0,62169.0,0.0004]
[1728218181454,1.17113346,62170.0,62169.0,0.0004]
[1728218181759,0.81033346,62170.0,62169.0,0.0004]
[1728218181951,0.44953346,62170.0,62169.0,0.0004]
[1728218182139,1.1134307,62170.0,62169.0,0.0004]
[1728218182452,0.81672606,62170.0,62169.0,0.0004]
[1728218189264,0.99428733,62170.0,62169.0,0.0004]
[1728218189457,0.99428733,62170.0,62164.0,0.03935121]
[1728218189458,0.064348,62165.0,62164.0,0.03935121]
[1728218189656,0.09582537,62165.0,62164.0,0.03935121]
[1728218190047,0.906206,62165.0,62164.0,0.03935121]
[1728218190247,0.24230942,62165.0,62164.0,0.03935121]
[1728218190557,0.90620615,62165.0,62164.0,0.03935121]
[1728218190755,0.90620615,62165.0,62164.0,0.0305]
[1728218191353,0.90820615,62165.0,62164.0,0.0305]
[1728218193446,0.18660615,62165.0,62164.0,0.0305]
[1728218193652,0.90820615,62165.0,62164.0,0.0305]
[1728218195151,0.90821287,62165.0,62164.0,0.0305]
[1728218196052,0.9659193,62165.0,62164.0,0.0305]
[1728218196446,0.2443193,62165.0,62164.0,0.0305]
[1728218196645,0.90821287,62165.0,62164.0,0.0305]
[1728218196851,0.9659193,62165.0,62164.0,0.0305]
[1728218197051,1.142779,62165.0,62164.0,0.0305]
[1728218197248,0.9652077,62165.0,62164.0,0.07873773]
[1728218197654,0.788348,62165.0,62164.0,0.07873773]
[1728218197966,0.788348,62165.0,62164.0,0.0305]
[1728218198152,0.724,62165.0,62164.0,0.0305]
[1728218198353,0.724,62165.0,62164.0,1.177449]
[1728218198658,0.724,62165.0,62164.0,1.28945257]
[1728218198861,0.724,62165.0,62164.0,1.38579668]
[1728218199064,0.724,62165.0,62164.0,1.28945257]
[1728218199457,0.724,62165.0,62164.0,1.32045257]
[1728218199956,0.724,62165.0,62164.0,1.3204063]
[1728218200875,0.3632,62165.0,62164.0,1.3204063]
[1728218201158,0.3632,62165.0,62164.0,1.2560573]
[1728218201754,0.0024,62165.0,62164.0,1.2560573]
[1728218201960,0.3632,62165.0,62164.0,1.2560573]
[1728218202157,0.3632,62165.0,62164.0,0.6560573]
[1728218202349,0.427548,62165.0,62164.0,0.1734573]
[1728218202554,0.427548,62165.0,62164.0,0.0615]
[1728218205862,0.066748,62165.0,62164.0,0.0615]
[1728218206065,0.427548,62165.0,62164.0,0.0615]
[1728218214875,0.066748,62165.0,62164.0,0.0615]
[1728218215161,0.427548,62165.0,62164.0,0.0615]
[1728218219463,0.427548,62165.0,62164.0,0.17352132]
[1728218222769,0.427548,62165.0,62164.0,0.17352339]
[1728218224476,0.427548,62165.0,62164.0,0.2698675]
[1728218225170,0.427548,62165.0,62164.0,0.17352339]
[1728218226273,0.427548,62165.0,62164.0,0.30710061]
[1728218226575,0.427548,62165.0,62164.0,0.0615]
[1728218226787,0.427548,62165.0,62164.0,0.14190677]
[1728218227073,0.427548,62165.0,62164.0,0.25400888]
[1728218228180,0.427548,62165.0,62164.0,0.17360211]
[1728218232273,0.3632,62165.0,62164.0,0.14260211]
[1728218232472,0.3632,62165.0,62164.0,1.28955111]
[1728218232969,0.0024,62165.0,62164.0,1.42310823]
[1728218234578,0.0024,62165.0,62164.0,1.177449]
[1728218236481,0.0024,62165.0,62164.0,0.577449]
[1728218240372,0.0024,62165.0,62164.0,1.177449]
[1728218241383,0.0024,62165.0,62164.0,1.2025997]
[1728218241586,0.0112,62168.0,62164.0,1.35782108]
[1728218241889,0.0112,62168.0,62167.0,0.064746]
[1728218242082,0.0004,62170.0,62169.0,0.064343]
[1728218242390,0.0004,62170.0,62169.0,1.25892592]
[1728218242701,0.0004,62170.0,62169.0,0.65892592]
[1728218243694,0.0024,62170.0,62169.0,0.65892592]
[1728218245679,0.0024,62170.0,62169.0,0.68729786]
[1728218245883,0.0024,62170.0,62169.0,0.20473786]
[1728218249687,0.0024,62170.0,62169.0,0.09311494]
[1728218256591,0.0024,62170.0,62169.0,0.20423569]
[1728218259601,0.0024,62170.0,62169.0,0.3006437]
[1728218261704,0.0024,62170.0,62169.0,0.20423569]
[1728218264908,0.0024,62170.0,62169.0,0.09311494]
[1728218269399,0.03449486,62170.0,62169.0,0.09311494]
[1728218271206,0.0024,62170.0,62169.0,0.09311494]
[1728218271507,0.03450989,62170.0,62169.0,0.09311494]
[1728218271712,0.03450989,62170.0,62169.0,0.33796334]
[1728218271713,0.0024,62170.0,62169.0,0.33796334]
[1728218276305,0.0024,62170.0,62169.0,0.3392188]
[1728218276612,0.0024,62170.0,62168.0,0.0313]
[1728218276613,0.04766888,62170.0,62168.0,0.0313]
[1728218276923,0.04766888,62170.0,62169.0,0.064343]
[1728218277410,0.04766888,62170.0,62166.0,0.02084046]
[1728218277714,0.0004,62167.0,62166.0,0.064347]
[1728218278105,0.0004,62167.0,62166.0,0.546907]
[1728218278909,0.0004,62167.0,62166.0,0.064347]
[1728218280518,0.0004,62167.0,62164.0,0.31406598]
[1728218280718,0.0004,62165.0,62164.0,0.37757498]
[1728218281120,0.0004,62165.0,62164.0,1.46017498]
[1728218281718,0.0004,62165.0,62164.0,1.00452515]
[1728218281918,0.0004,62165.0,62164.0,1.06887415]
[1728218282719,0.0004,62165.0,62164.0,0.967033]
[1728218283425,0.0004,62167.0,62164.0,0.7557764]
[1728218283627,0.0074,62172.0,62165.0,0.95908696]
[1728218283826,0.3682,62175.0,62173.0,0.064339]
[1728218284126,0.3608,62175.0,62173.0,0.064739]
[1728218285215,0.064333,62179.0,62173.0,0.064739]
[1728218285415,0.064333,62179.0,62173.0,0.18041457]
[1728218286621,0.064333,62179.0,62173.0,0.18241457]
[1728218287225,0.064333,62179.0,62173.0,0.20754016]
[1728218287424,0.064333,62179.0,62173.0,0.18241457]
[1728218288526,0.128667,62179.0,62173.0,0.18241457]
[1728218288917,0.064333,62179.0,62173.0,0.18241457]
[1728218289115,0.064333,62179.0,62173.0,0.21079013]
[1728218290120,0.064333,62179.0,62173.0,0.21379013]
[1728218290523,0.0301,62180.0,62173.0,0.21379013]
[1728218290920,0.064337,62175.0,62173.0,0.10111456]
[1728218291136,0.064337,62176.0,62173.0,0.09811456]
[1728218291340,0.0309,62175.0,62173.0,0.10111456]
[1728218291525,0.064738,62174.0,62173.0,0.10111456]
[1728218292835,0.064738,62174.0,62173.0,0.09811456]
[1728218293135,0.064738,62174.0,62173.0,0.10411456]
[1728218293431,0.064738,62174.0,62173.0,0.10111456]
[1728218293734,0.064738,62174.0,62173.0,0.09811456]
[1728218294236,0.0309,62175.0,62173.0,0.34750523]
[1728218294458,0.0309,62175.0,62174.0,0.0004]
[1728218295157,0.0309,62175.0,62174.0,0.064738]
[1728218296553,0.0309,62175.0,62174.0,0.066738]
[1728218297050,0.0309,62175.0,62174.0,0.067738]
[1728218297848,0.3608,62179.0,62177.0,0.064335]
[1728218298151,0.42051011,62178.0,62177.0,0.064335]
[1728218298351,0.42051011,62178.0,62177.0,0.064735]
[1728218299156,0.42051011,62178.0,62177.0,0.17801693]
[1728218301366,0.42051011,62178.0,62177.0,0.25833413]
[1728218301556,0.42051011,62178.0,62177.0,0.17801693]
[1728218302151,0.42051011,62178.0,62177.0,0.064735]
[1728218310168,0.42051011,62178.0,62177.0,0.31340905]
[1728218311963,0.42051011,62178.0,62177.0,0.31341622]
[1728218317163,0.45157481,62178.0,62177.0,0.064735]
[1728218319063,0.42051011,62178.0,62177.0,0.064735]
[1728218319266,0.45157482,62178.0,62177.0,0.064735]
[1728218325279,0.45157482,62178.0,62177.0,0.31335076]
[1728218325280,0.42051011,62178.0,62177.0,0.31335076]
[1728218326669,0.42051011,62178.0,62177.0,0.19995219]
[1728218326868,0.42051011,62178.0,62177.0,0.31339308]
[1728218332176,0.45157516,62178.0,62177.0,0.064735]
[1728218332676,0.51590916,62178.0,62177.0,0.064735]
[1728218340172,0.48484411,62178.0,62177.0,0.31328443]
[1728218340786,0.48484411,62178.0,62177.0,0.31327867]
[1728218344881,0.48484411,62178.0,62177.0,0.31327555]
[1728218346486,0.48484411,62178.0,62177.0,0.31325968]
[1728218347287,0.48484411,62178.0,62177.0,0.064735]
[1728218347486,0.48484411,62178.0,62177.0,0.1780878]
[1728218347687,0.48484411,62178.0,62177.0,0.3132]
[1728218350682,0.48484411,62178.0,62177.0,0.31326051]
[1728218354690,0.51590927,62178.0,62177.0,0.064735]
[1728218355589,0.51590939,62178.0,62177.0,0.064735]
[1728218362800,0.48484411,62178.0,62177.0,0.31319348]
[1728218367905,0.48484411,62178.0,62177.0,0.17808483]
[1728218369702,0.48484411,62178.0,62177.0,0.064735]
[1728218374101,0.48484411,62178.0,62177.0,0.11298464]
[1728218374306,0.48484411,62178.0,62177.0,0.064735]
[1728218377707,0.48484411,62178.0,62177.0,0.27423975]
[1728218378508,0.48484411,62178.0,62177.0,0.17774047]
[1728218378814,0.48484411,62178.0,62177.0,0.31253458]
[1728218392425,0.48484411,62178.0,62177.0,0.17774047]
[1728218392723,0.48484411,62178.0,62177.0,0.064735]
[1728218399821,0.48484411,62178.0,62177.0,0.31259812]
[1728218403429,0.48484411,62178.0,62177.0,0.31261461]
[1728218407731,0.48484411,62178.0,62177.0,0.064735]
[1728218414829,0.48484411,62178.0,62177.0,0.27434117]
[1728218416832,0.48484411,62178.0,62177.0,0.31262868]
[1728218418145,0.48484411,62178.0,62177.0,0.24828636]
[1728218422930,0.48484411,62178.0,62177.0,0.0004]
[1728218422931,0.51590798,62178.0,62177.0,0.0004]
[1728218423136,0.87670798,62178.0,62177.0,0.0004]
[1728218423830,0.90740798,62178.0,62177.0,0.0004]
[1728218426840,1.98988798,62178.0,62177.0,0.0004]
[1728218429939,1.95882411,62178.0,62177.0,0.11363288]
[1728218430441,1.95882411,62178.0,62177.0,0.21007049]
[1728218431044,1.95882411,62178.0,62177.0,0.11363288]
[1728218431349,1.95882411,62178.0,62177.0,0.21006529]
[1728218431548,1.95882411,62178.0,62177.0,0.11363288]
[1728218433737,1.35882411,62178.0,62177.0,0.11363288]
[1728218434646,1.35882411,62178.0,62177.0,0.24856387]
[1728218436248,1.35882411,62178.0,62177.0,0.11363288]
[1728218439055,0.87634411,62178.0,62177.0,0.11360189]
[1728218441155,1.35882411,62178.0,62177.0,0.11360189]
[1728218441952,0.87634411,62178.0,62177.0,0.11360189]
[1728218442356,0.51554411,62178.0,62177.0,0.11360189]
[1728218442549,0.87634411,62178.0,62177.0,0.11360189]
[1728218444456,0.87634411,62178.0,62177.0,0.11366953]
[1728218444957,0.87634411,62178.0,62177.0,0.0004]
[1728218447350,0.84564411,62178.0,62177.0,0.0004]
[1728218450958,0.87671289,62178.0,62177.0,0.0004]
[1728218452857,1.23751289,62178.0,62177.0,0.0004]
[1728218453061,1.20644411,62178.0,62177.0,0.24885487]
[1728218453457,0.48484411,62178.0,62177.0,0.24885487]
[1728218453653,1.20644411,62178.0,62177.0,0.24885487]
[1728218455254,1.20644411,62178.0,62177.0,0.11374818]
[1728218455455,1.20644411,62178.0,62177.0,0.24882622]
[1728218456763,0.48484411,62178.0,62177.0,0.24882622]
[1728218457062,1.20644411,62178.0,62177.0,0.24882622]
[1728218458353,1.20644411,62178.0,62177.0,0.11374818]
[1728218458951,1.20644411,62178.0,62177.0,0.24876812]
[1728218459258,1.20644411,62178.0,62177.0,0.210194]
[1728218459561,1.20644411,62178.0,62177.0,0.1137086]
[1728218460050,1.23751309,62178.0,62177.0,0.0004]
[1728218460961,0.51591309,62178.0,62177.0,0.0004]
[1728218461165,1.23751309,62178.0,62177.0,0.0004]
[1728218463956,0.51591309,62178.0,62177.0,0.0004]
[1728218464157,1.23751309,62178.0,62177.0,0.0004]
[1728218466053,0.51591309,62178.0,62177.0,0.0004]
[1728218466471,1.23751309,62178.0,62177.0,0.0004]
[1728218467158,0.064337,62175.0,62174.0,0.0004]
[1728218467358,0.09580632,62175.0,62174.0,0.0004]
[1728218467564,0.51591643,62175.0,62174.0,0.0004]
[1728218467768,0.55530659,62175.0,62174.0,0.0004]
[1728218467968,0.48484711,62175.0,62174.0,0.11375302]
[1728218468367,0.48484711,62175.0,62174.0,0.11475302]
[1728218468558,0.48484711,62175.0,62174.0,0.11575302]
[1728218470970,0.84564711,62175.0,62174.0,0.11575302]
[1728218472265,0.48484711,62175.0,62174.0,0.11575302]
[1728218472457,0.84564711,62175.0,62174.0,0.11575302]
[1728218474372,0.84564711,62175.0,62174.0,0.19611722]
[1728218475064,0.84564711,62175.0,62174.0,0.0024]
[1728218475472,0.48484711,62175.0,62174.0,0.0024]
[1728218475760,1.20644711,62175.0,62174.0,0.0024]
[1728218476373,1.20644711,62175.0,62174.0,0.06668645]
[1728218476573,1.20644711,62175.0,62174.0,0.0024]
[1728218476962,2.28896711,62175.0,62174.0,0.0024]
[1728218477875,2.28896711,62175.0,62174.0,0.05060809]
[1728218478060,2.22463011,62175.0,62172.0,0.04820927]
[1728218478267,0.064739,62173.0,62172.0,0.04820927]
[1728218478472,0.06434,62172.0,62171.0,0.0116]
[1728218478778,0.06474,62172.0,62171.0,0.0004]
[1728218478982,0.48485011,62172.0,62171.0,0.0004]
[1728218480180,0.48485011,62172.0,62171.0,0.09718645]
[1728218480965,0.48485011,62172.0,62171.0,0.10118645]
[1728218481476,0.48485011,62172.0,62171.0,0.10518645]
[1728218483176,0.48485011,62172.0,62171.0,0.0409]
[1728218483177,0.51592307,62172.0,62171.0,0.0409]
[1728218486371,0.51592352,62172.0,62171.0,0.0409]
[1728218487273,0.55531616,62172.0,62171.0,0.0409]
[1728218487581,1.27691616,62172.0,62171.0,0.0409]
[1728218488167,1.23752352,62172.0,62171.0,0.0409]
[1728218490175,1.20645011,62172.0,62171.0,0.0409]
[1728218498173,1.23752283,62172.0,62171.0,0.0409]
[1728218502580,1.27691489,62172.0,62171.0,0.0409]
[1728218505187,1.20645011,62172.0,62171.0,0.0409]
[1728218506798,1.20645011,62172.0,62171.0,0.0084]
[1728218513090,1.27691683,62172.0,62171.0,0.0084]
[1728218514393,0.55531683,62172.0,62171.0,0.0084]
[1728218514698,1.27691683,62172.0,62171.0,0.0084]
[1728218519797,1.32629382,62172.0,62171.0,0.0084]
[1728218520297,1.20645011,62172.0,62171.0,0.07274873]
[1728218520493,1.20645011,62172.0,62171.0,0.0084]
[1728218522899,1.20645011,62172.0,62171.0,0.07275765]
[1728218525298,1.20645011,62172.0,62171.0,0.0084]
[1728218527709,1.20645011,62172.0,62171.0,0.07275765]
[1728218528309,1.20645011,62172.0,62171.0,0.0084]
[1728218528515,1.20645011,62172.0,62171.0,0.07275765]